bitfinex/quotes_ETHUSD_20241216
["timestamp","ask_amount","ask_price","bid_price","bid_amount"]
[1734309653800,0.51056888,3994.3,3993.8,0.5]
[1734309654271,0.51056888,3994.3,3993.8,0.25]
[1734309654272,3.01416888,3994.3,3993.8,0.25]
[1734309654657,3.01416888,3994.3,3993.8,0.5]
[1734309655279,0.51056888,3994.3,3994.0,0.25]
[1734309656465,0.51056888,3994.3,3994.0,0.5]
[1734309656792,0.51056888,3994.3,3994.0,0.25]
[1734309656977,0.51056888,3994.3,3993.9,0.25]
[1734309657179,0.51056888,3994.3,3994.1,0.25]
[1734309657504,3.01415888,3994.3,3993.5,0.25]
[1734309657712,0.51056888,3994.3,3993.6,0.25]
[1734309657894,0.51056888,3994.3,3994.0,0.25]
[1734309658225,2.50363,3994.2,3993.8,0.25]
[1734309658383,0.50918973,3994.1,3993.8,0.25]
[1734309658778,0.50918973,3994.1,3993.3,0.25]
[1734309658779,2.50397,3993.7,3993.3,0.25]
[1734309659007,2.50378,3994.0,3993.0,0.5]
[1734309659306,2.50409,3993.5,3993.0,0.25]
[1734309659608,2.50392,3993.8,3993.1,0.25]
[1734309659814,2.50312,3995.0,3993.7,0.25]
[1734309659975,2.50337,3994.7,3994.0,0.25]
[1734309660170,2.50337,3994.7,3994.2,0.25]
[1734309660372,0.51264339,3994.3,3994.2,0.25]
[1734309661477,2.5037,3994.1,3993.8,0.5]
[1734309661675,2.5037,3994.1,3993.5,0.5]
[1734309661907,2.50378,3994.0,3993.8,0.25]
[1734309662210,0.51264339,3994.3,3993.8,0.25]
[1734309662411,2.50363,3994.2,3993.8,0.25]
[1734309662614,2.50363,3994.2,3993.8,0.5]
[1734309663003,2.50363,3994.2,3993.8,0.25]
[1734309663384,2.50363,3994.2,3993.8,0.5]
[1734309663922,0.51264339,3994.3,3993.8,0.5]
[1734309664079,0.51264339,3994.3,3993.8,0.25]
[1734309664281,0.51264339,3994.3,3993.8,0.5]
[1734309664514,0.51264339,3994.3,3993.7,0.25]
[1734309664717,0.51264339,3994.3,3993.8,0.25]
[1734309664923,0.51264339,3994.3,3993.5,0.5]
[1734309664924,2.50369,3994.1,3993.5,0.5]
[1734309665213,2.50377,3994.0,3993.5,0.25]
[1734309665574,3.01626339,3994.3,3993.7,0.25]
[1734309666035,2.50364,3994.2,3993.7,0.25]
[1734309666897,0.51264339,3994.3,3994.1,0.25]
[1734309667298,0.51264339,3994.3,3994.1,0.5]
[1734309667615,0.51264339,3994.3,3994.1,0.25]
[1734309667992,0.51264339,3994.3,3994.1,0.5]
[1734309668208,0.51264339,3994.3,3993.9,0.25]
[1734309668396,0.51264339,3994.3,3993.5,0.7918]
[1734309668397,2.50381,3993.9,3993.7,0.5]
[1734309668596,2.50369,3994.1,3993.7,0.25]
[1734309668994,0.51264339,3994.3,3993.7,0.25]
[1734309668995,0.51264339,3994.3,3994.1,0.25]
[1734309669195,0.51264339,3994.3,3994.1,0.5]
[1734309673006,0.51264339,3994.3,3993.6,2.50396]
[1734309673007,3.01621339,3994.3,3993.7,0.25]
[1734309673203,3.01621339,3994.3,3993.3,0.7948]
[1734309673204,0.51264339,3994.3,3994.2,0.25]
[1734309673445,0.51264339,3994.3,3994.2,0.5]
[1734309674052,0.51264339,3994.3,3994.2,0.25]
[1734309674263,0.51264339,3994.3,3994.2,0.5]
[1734309676147,0.51264339,3994.3,3994.2,1.2611]
[1734309677149,2.50258,3995.9,3995.1,0.25]
[1734309677531,2.5027,3995.7,3995.1,0.25]
[1734309677716,0.49738992,3995.2,3995.1,0.25]
[1734309678132,0.49738992,3995.2,3995.1,1.2807]
[1734309678834,0.49738992,3995.2,3994.5,0.5]
[1734309679214,2.50315,3995.0,3994.5,0.5]
[1734309680232,0.49738992,3995.2,3994.5,0.5]
[1734309680757,2.59930894,3995.6,3994.5,0.5]
[1734309680758,2.50281,3995.5,3994.5,0.5]
[1734309680943,0.50459702,3994.6,3994.5,0.5]
[1734309681564,4.15624179,3996.1,3994.5,0.5]
[1734309681565,2.50245,3996.1,3995.4,0.5]
[1734309681856,2.50245,3996.1,3994.3,2.50356]
[1734309681857,0.49841585,3995.5,3995.2,0.25]
[1734309682260,0.49841585,3995.5,3995.2,0.5]
[1734309682465,0.49841585,3995.5,3995.4,0.5]
[1734309683124,0.49841585,3995.5,3995.4,0.25]
[1734309683319,0.49841585,3995.5,3995.2,0.25]
[1734309683320,2.50289,3995.4,3995.2,0.25]
[1734309683656,0.49841585,3995.5,3994.9,0.25]
[1734309683862,0.49841585,3995.5,3994.8,0.25]
[1734309683863,2.50314,3995.0,3994.8,0.25]
[1734309684268,0.49841585,3995.5,3994.8,0.25]
[1734309684561,0.49841585,3995.5,3995.4,0.25]
[1734309684921,0.49540309,3995.5,3995.4,0.5]
[1734309689236,2.50294,3995.3,3995.2,0.25]
[1734309689535,0.49540309,3995.5,3994.9,0.25]
[1734309689536,2.50307,3995.1,3994.9,0.5]
[1734309689983,2.50332,3994.7,3994.2,0.8039]
[1734309690130,2.50338,3994.6,3993.7,0.8039]
[1734309690326,2.50322,3994.9,3993.8,2.12692397]
[1734309690567,0.49105143,3994.3,3993.9,2.12708036]
[1734309690779,0.49105143,3994.3,3994.0,2.12708036]
[1734309690935,1.60523996,3995.4,3994.1,3.14897727]
[1734309691133,2.50287,3995.5,3994.2,3.95287727]
[1734309691339,0.49160188,3994.9,3994.4,2.50349]
[1734309691691,0.49160188,3994.9,3994.5,2.12708036]
[1734309691867,0.49160188,3994.9,3994.6,0.85075761]
[1734309692072,0.49160188,3994.9,3994.4,1.02189691]
[1734309692253,1.67412328,3995.6,3994.5,2.12541312]
[1734309692431,1.67412328,3995.6,3994.6,2.12541312]
[1734309692432,0.48824913,3995.0,3994.6,2.12541312]
[1734309692635,0.48824913,3995.0,3994.7,0.85016169]
[1734309692849,0.48824913,3995.0,3994.4,1.02189691]
[1734309693051,0.48824913,3995.0,3994.4,5.65059989]
[1734309693278,0.48824913,3995.0,3994.5,3.14710989]
[1734309693793,0.48824913,3995.0,3994.7,0.8039]
[1734309693964,0.48824913,3995.0,3994.8,0.85008519]
[1734309694287,0.48824913,3995.0,3994.7,0.8039]
[1734309694593,0.48824913,3995.0,3994.3,1.53284537]
[1734309694594,0.48824913,3995.0,3994.3,1.82579691]
[1734309694732,0.48824913,3995.0,3994.3,0.8039]
[1734309695740,2.50307,3995.1,3994.3,0.8039]
[1734309696162,2.50306,3995.2,3994.3,0.8039]
[1734309696426,1.79394471,3995.5,3994.3,0.8039]
[1734309696600,1.79394471,3995.5,3994.0,1.02189691]
[1734309696889,0.48816008,3994.5,3993.9,0.7813]
[1734309697183,0.48816008,3994.5,3994.0,0.8509247]
[1734309697397,0.48816008,3994.5,3993.9,0.7813]
[1734309697739,0.48816008,3994.5,3993.3,1.02189691]
[1734309698091,2.50404,3993.6,3992.6,1.82939691]
[1734309698235,0.48816008,3994.5,3992.7,0.85168582]
[1734309698236,2.15911231,3993.8,3992.7,0.85168582]
[1734309698435,2.15911231,3993.8,3992.6,0.8075]
[1734309698748,2.50409,3993.5,3992.1,1.82939691]
[1734309698992,2.35753655,3993.7,3992.2,2.12935828]
[1734309699135,2.15911231,3993.4,3992.3,0.85174331]
[1734309699335,2.50458,3992.7,3991.7,1.81479691]
[1734309699584,2.15911231,3993.0,3991.7,0.7929]
[1734309699585,2.50464,3992.6,3991.7,0.7929]
[1734309699891,2.15911231,3993.0,3991.7,0.7929]
[1734309699892,2.50448,3992.9,3991.7,0.7929]
[1734309700065,0.5079125,3992.4,3991.7,0.7929]
[1734309700733,0.5079125,3992.4,3991.8,4.63220037]
[1734309700942,0.5079125,3992.4,3991.9,2.1270096]
[1734309701244,0.5079125,3992.4,3991.7,3.29808]
[1734309701439,0.5079125,3992.4,3991.7,0.7929]
[1734309701994,0.5079125,3992.4,3991.1,0.7907]
[1734309702491,2.50495,3992.1,3990.8,1.02189691]
[1734309702696,2.50506,3992.0,3990.7,0.7907]
[1734309702839,2.50508,3991.9,3990.7,0.7907]
[1734309703039,2.50515,3991.8,3990.7,0.7907]
[1734309703282,2.50457,3992.7,3990.7,0.7907]
[1734309703489,2.60200516,3993.0,3990.7,0.7907]
[1734309703490,2.50501,3992.0,3990.7,0.7907]
[1734309703779,2.50509,3991.9,3990.7,0.7907]
[1734309704046,2.20071912,3993.9,3990.3,0.7907]
[1734309704047,2.60200516,3992.5,3990.3,0.7907]
[1734309704215,0.50996478,3991.2,3991.0,7.87676207]
[1734309704412,3.01549478,3991.2,3991.0,7.16052838]
[1734309704570,3.01549478,3991.2,3991.0,5.82027784]
[1734309704771,3.01549478,3991.2,3991.0,4.04398393]
[1734309704989,2.5061,3990.3,3989.2,0.7907]
[1734309705154,0.50996478,3991.2,3989.2,0.7907]
[1734309705362,3.01548478,3991.2,3989.2,0.7907]
[1734309705669,2.60200516,3991.5,3989.2,0.7907]
[1734309705873,0.50475901,3989.7,3989.2,0.7907]
[1734309706100,2.60200516,3991.5,3989.2,0.7907]
[1734309706101,2.50537,3991.5,3989.6,2.50646]
[1734309706401,1.81861179,3991.8,3989.7,0.7978]
[1734309706609,2.50536,3991.5,3989.8,2.50635]
[1734309706808,2.50544,3991.4,3989.7,0.7978]
[1734309707009,2.50548,3991.3,3989.7,0.7978]
[1734309707526,2.5056,3991.1,3989.7,0.7978]
[1734309707837,2.60200516,3991.0,3989.7,0.7978]
[1734309708039,2.60200516,3991.0,3987.9,4.64579899]
[1734309708040,2.60200516,3990.5,3989.1,0.7978]
[1734309708246,2.50616,3990.2,3988.3,0.7978]
[1734309708596,2.60200516,3990.5,3988.3,0.7978]
[1734309708790,2.60200516,3990.5,3988.3,3.3051]
[1734309709188,2.50625,3990.1,3988.3,0.7978]
[1734309709393,2.50625,3990.1,3988.3,3.3051]
[1734309710445,5.10800516,3990.5,3988.4,2.50721]
[1734309710647,5.10800516,3990.5,3988.3,0.7978]
[1734309710648,2.50607,3990.4,3988.5,2.50717]
[1734309711140,2.50621,3990.1,3988.3,0.7978]
[1734309711911,2.50602,3990.4,3988.3,0.7978]
[1734309712244,2.60200516,3990.5,3988.3,0.7978]
[1734309712655,1.73286816,3990.8,3988.3,0.7978]
[1734309712951,0.4886261,3989.6,3988.3,0.7978]
[1734309713103,2.60200516,3990.5,3988.3,0.7978]
[1734309713300,2.50651,3989.7,3988.3,0.7978]
[1734309713603,2.50614,3990.2,3988.3,0.7978]
[1734309713857,0.4943882,3988.5,3987.3,0.8003]
[1734309714652,2.50689,3989.1,3987.3,0.8003]
[1734309714939,2.60200516,3989.5,3987.3,0.8003]
[1734309714940,2.50693,3989.0,3987.3,0.8003]
[1734309715299,2.50655,3989.6,3987.3,0.8003]
[1734309715300,0.49222304,3987.7,3987.3,0.8003]
[1734309715502,2.50705,3988.8,3987.3,0.8003]
[1734309715701,4.30557204,3989.5,3987.3,0.8003]
[1734309715948,1.64587687,3989.3,3987.3,0.8003]
[1734309716127,0.5066545,3987.4,3987.3,0.8003]
[1734309716337,1.64587687,3989.3,3987.4,2.50786]
[1734309716506,1.64587687,3989.3,3987.3,0.8003]
[1734309716706,0.48866528,3988.0,3987.8,2.50759]
[1734309717043,1.64587687,3989.3,3988.0,2.50752]
[1734309717225,0.51236695,3988.1,3987.9,0.8003]
[1734309717842,0.51236695,3988.1,3987.9,3.30784]
[1734309718005,1.64587687,3989.3,3987.9,3.30784]
[1734309718207,1.64587687,3989.3,3988.0,2.50749]
[1734309718516,1.64587687,3989.3,3987.8,2.50764]
[1734309718717,1.64587687,3989.3,3989.0,3.30877]
[1734309719102,1.64587687,3989.3,3986.9,6.55]
[1734309719103,2.50628,3990.0,3988.2,0.8019]
[1734309719249,2.50628,3990.0,3988.3,2.50729]
[1734309719450,0.49788538,3989.1,3988.2,0.8019]
[1734309720523,2.50706,3988.8,3987.8,0.8246]
[1734309720724,2.50684,3989.1,3987.8,0.8246]
[1734309721122,4.24611494,3989.4,3987.8,0.8246]
[1734309721323,0.49781011,3988.3,3987.8,0.8246]
[1734309721566,2.60200516,3988.9,3987.8,0.8246]
[1734309721920,0.50041592,3987.9,3987.8,0.8246]
[1734309722665,0.50041592,3987.9,3987.3,0.8206]
[1734309722902,0.50041592,3987.9,3987.7,2.50768]
[1734309723206,1.64785405,3988.8,3987.2,2.508]
[1734309723207,1.64785405,3988.8,3988.0,2.50752]
[1734309723369,1.64785405,3988.8,3988.7,0.8206]
[1734309723693,5.10803516,3990.4,3988.7,0.8206]
[1734309723694,0.50883469,3989.6,3988.7,0.8206]
[1734309723888,0.50883469,3989.6,3989.4,2.50662]
[1734309724045,2.60200516,3990.4,3989.2,2.50673]
[1734309724245,0.50607855,3990.0,3989.0,2.50687]
[1734309724448,0.50607855,3990.0,3988.7,0.8206]
[1734309724708,0.50607855,3990.0,3988.8,2.507]
[1734309724994,2.60200516,3990.4,3988.7,0.8206]
[1734309724995,0.49495374,3989.1,3988.7,0.8206]
[1734309725349,0.49495374,3989.1,3988.7,3.32765]
[1734309725547,2.50611,3990.3,3988.7,3.32765]
[1734309725748,0.5011676,3989.6,3988.7,0.8206]
[1734309725986,2.50609,3990.3,3988.7,3.32766]
[1734309726290,2.60200516,3990.4,3988.7,3.32766]
[1734309726291,2.60200516,3990.4,3989.0,2.50687]
[1734309726507,0.13381384,3991.6,3988.7,0.8206]
[1734309726508,2.60200516,3990.9,3988.7,0.8206]
[1734309726724,2.60200516,3990.9,3989.5,2.50651]
[1734309726848,3.09159694,3989.6,3988.1,0.8072]
[1734309727178,3.09159694,3989.6,3988.4,2.50726]
[1734309727379,3.09159694,3989.6,3988.1,0.8072]
[1734309727602,3.09159694,3989.6,3988.1,3.31465]
[1734309727782,3.09159694,3989.6,3988.1,0.8072]
[1734309728300,2.50689,3989.0,3988.1,0.8072]
[1734309728461,2.60200516,3989.1,3987.0,2.50813]
[1734309728662,2.5066,3989.5,3988.1,2.50745]
[1734309728866,2.60200516,3989.6,3988.0,0.8278]
[1734309729178,2.60200516,3989.6,3988.2,2.50735]
[1734309729353,0.50666084,3989.1,3988.2,2.50735]
[1734309729867,0.50666084,3989.1,3988.0,0.8278]
[1734309730052,3.108666,3989.1,3988.0,0.8278]
[1734309730257,3.108666,3989.1,3987.6,2.50776]
[1734309730258,5.10888516,3989.1,3987.6,2.50776]
[1734309730578,0.50641029,3988.2,3987.6,2.50776]
[1734309730889,0.50641029,3988.2,3987.5,0.7522]
[1734309731207,5.10884516,3989.1,3987.9,2.50756]
[1734309731208,0.49363228,3988.5,3987.9,2.50756]
[1734309731349,2.60200516,3989.1,3987.9,2.50756]
[1734309731692,0.48872151,3988.7,3987.5,3.26003]
[1734309731854,0.48872151,3988.7,3987.6,2.50777]
[1734309732193,0.48872151,3988.7,3987.8,2.50762]
[1734309732552,0.48872151,3988.7,3987.5,0.7522]
[1734309732749,0.48872151,3988.7,3988.4,2.50725]
[1734309732998,0.48872151,3988.7,3987.5,0.7522]
[1734309732999,4.19278997,3990.1,3988.7,0.8249]
[1734309733204,4.19278997,3990.1,3986.9,6.3]
[1734309733205,0.511205,3989.3,3988.4,2.50725]
[1734309733496,0.511205,3989.3,3987.7,0.8249]
[1734309733663,0.511205,3989.3,3988.7,2.50705]
[1734309733854,0.511205,3989.3,3988.6,0.8249]
[1734309734051,2.60200516,3990.1,3988.7,2.50705]
[1734309734288,0.49095529,3989.5,3988.6,0.8249]
[1734309734486,0.49095529,3989.5,3988.6,3.33203]
[1734309734689,2.60200516,3990.1,3988.6,3.33203]
[1734309734690,2.60200516,3990.1,3989.2,2.50675]
[1734309734991,2.60200516,3990.6,3989.4,2.50659]
[1734309735154,0.49897498,3989.8,3988.6,0.8249]
[1734309735492,0.49897498,3989.8,3988.1,0.8249]
[1734309735675,2.60200516,3990.6,3989.5,3.33146]
[1734309735884,2.60200516,3990.6,3989.5,3.33147]
[1734309736051,0.4944639,3989.7,3989.6,2.50647]
[1734309736250,2.75464,3992.6,3989.6,2.50647]
[1734309736251,2.60200516,3991.6,3990.4,2.50599]
[1734309736549,0.4983735,3991.0,3990.6,2.50583]
[1734309736791,0.4983735,3991.0,3989.7,3.28579]
[1734309736792,0.4983735,3991.0,3989.7,3.28583]
[1734309737004,0.4983735,3991.0,3990.0,2.50624]
[1734309737510,0.4983735,3991.0,3990.1,2.50617]
[1734309738289,0.4983735,3991.0,3989.7,0.7794]
[1734309738290,0.4983735,3991.0,3989.8,2.50634]
[1734309738602,3.0040435,3991.0,3989.7,0.7794]
[1734309739122,0.4983735,3991.0,3989.7,0.7794]
[1734309739396,0.4983735,3991.0,3988.6,0.5072954]
[1734309739397,2.60200516,3989.8,3988.2,1.02189691]
[1734309739567,2.60200516,3989.8,3988.0,2.31224537]
[1734309739568,5.10871516,3989.3,3988.0,3.28691]
[1734309739890,2.5069,3989.0,3988.0,0.7794]
[1734309740091,2.60200516,3989.3,3988.0,0.7794]
[1734309740293,2.50612,3990.3,3987.3,2.50794]
[1734309740294,2.60200516,3988.8,3987.3,2.50794]
[1734309740450,2.60200516,3988.8,3987.3,2.50796]
[1734309740651,2.60200516,3988.8,3987.2,0.8126]
[1734309740652,0.5002956,3988.0,3987.2,0.8126]
[1734309741248,2.50717,3988.6,3987.2,0.8126]
[1734309741452,0.49092602,3987.6,3987.2,0.8126]
[1734309741873,2.50723,3988.5,3987.2,0.8126]
[1734309742086,0.51352325,3987.7,3987.2,0.8126]
[1734309742462,2.50704,3988.8,3987.2,0.8126]
[1734309742790,0.5034522,3988.2,3987.2,0.8126]
[1734309742989,2.60200516,3989.3,3987.2,0.8126]
[1734309742990,2.5071,3988.7,3987.2,0.8126]
[1734309743151,0.5002956,3988.5,3987.2,0.8126]
[1734309743348,0.25,3992.3,3987.7,2.60200516]
[1734309743597,0.25,3992.4,3989.3,0.8228]
[1734309743598,2.50553,3991.2,3989.3,0.8228]
[1734309743795,2.50584,3990.7,3989.3,0.8228]
[1734309744090,2.50534,3991.5,3989.4,5.80396284]
[1734309744309,2.50534,3991.5,3989.5,2.10808568]
[1734309744457,2.50534,3991.5,3989.6,3.25848004]
[1734309744657,2.50559,3991.1,3989.7,0.84394651]
[1734309744853,2.50565,3991.0,3990.0,0.776165]
[1734309745169,0.50069644,3991.0,3990.0,0.776165]
[1734309745396,3.00633644,3991.0,3990.0,0.776165]
[1734309745597,2.50564,3991.0,3990.0,0.776165]
[1734309746023,2.50546,3991.3,3990.0,0.776165]
[1734309746240,0.49809686,3991.0,3990.0,0.776165]
[1734309746529,3.00375686,3991.0,3990.0,0.776165]
[1734309746731,0.49809686,3991.0,3990.0,0.776165]
[1734309746885,2.50584,3990.7,3990.0,0.776165]
[1734309747087,2.5059,3990.6,3990.0,0.776165]
[1734309747287,2.50619,3990.2,3990.0,0.776165]
[1734309747489,2.50619,3990.2,3990.0,0.57545]
[1734309747696,0.51308136,3990.1,3990.0,0.40143001]
[1734309748024,0.51308136,3990.1,3990.0,1e-08]
[1734309748232,0.51308136,3990.1,3988.1,2.30564537]
[1734309748233,2.50699,3988.9,3988.1,1.79469691]
[1734309748387,2.50699,3988.9,3988.2,2.11729088]
[1734309748586,2.50709,3988.7,3988.0,1.02189691]
[1734309748791,2.60200516,3989.2,3987.7,1.02189691]
[1734309749027,2.50689,3989.0,3987.4,1.02189691]
[1734309749195,2.50708,3988.7,3987.5,0.84721872]
[1734309749406,0.50025182,3987.9,3987.2,1.02189691]
[1734309749617,0.50025182,3987.9,3987.3,1.02189691]
[1734309749930,2.50772,3987.7,3987.1,1.02189691]
[1734309750231,2.50772,3987.7,3987.2,0.84773549]
[1734309750431,2.50772,3987.7,3986.9,1.02189691]
[1734309750589,0.50025182,3987.9,3986.9,1.02189691]
[1734309751428,0.50025182,3987.9,3987.0,0.84733609]
[1734309751650,0.50025182,3987.9,3986.8,1.02189691]
[1734309751985,0.50025182,3987.9,3986.9,1.02189691]
[1734309752630,2.63678863,3990.1,3987.4,1.02189691]
[1734309752631,2.50691,3989.0,3987.4,1.02189691]
[1734309752832,2.50663,3989.5,3987.6,0.8251]
[1734309752986,2.50585,3990.7,3989.0,2.50685]
[1734309753193,2.50584,3990.7,3989.1,3.35305679]
[1734309753428,0.49109525,3990.3,3989.2,0.84624254]
[1734309753626,0.49109525,3990.3,3989.3,2.11558336]
[1734309753794,0.49109525,3990.3,3989.4,0.84618352]
[1734309753994,0.49109525,3990.3,3989.1,1.02189691]
[1734309754308,0.49109525,3990.3,3989.1,2.11556978]
[1734309754683,2.50625,3990.1,3988.7,1.02189691]
[1734309754929,2.5057,3990.9,3988.6,3.13772658]
[1734309755232,2.5064,3989.8,3988.7,2.11609645]
[1734309755402,2.5064,3989.8,3988.4,3.52911691]
[1734309755403,0.50132223,3989.2,3988.4,3.52911691]
[1734309755601,2.5064,3989.8,3988.5,0.84655962]
[1734309755814,0.51350436,3989.5,3988.5,3.35375962]
[1734309756132,2.5064,3989.8,3988.6,2.11642629]
[1734309756303,0.49164671,3989.3,3988.3,1.84699691]
[1734309756491,0.49164671,3989.3,3988.4,2.11629257]
[1734309756702,2.5064,3989.8,3988.5,0.84651703]
[1734309757031,0.508441,3989.4,3988.3,3.33238]
[1734309757236,2.50622,3990.1,3988.5,2.50718]
[1734309757438,2.50628,3990.0,3988.5,2.50718]
[1734309757917,2.50642,3989.8,3988.3,0.8251]
[1734309758088,0.51184999,3989.9,3988.3,0.8251]
[1734309758525,2.50626,3990.0,3988.3,0.8251]
[1734309758829,1.66952772,3990.3,3987.8,0.7699]
[1734309758830,0.51167941,3988.9,3987.8,0.7699]
[1734309759032,2.50702,3988.8,3987.5,1.02189691]
[1734309759204,2.50716,3988.6,3987.3,1.79179691]
[1734309759412,2.50713,3988.7,3987.3,0.7699]
[1734309759612,2.50664,3989.5,3987.3,0.7699]
[1734309759795,2.50679,3989.2,3987.6,2.50775]
[1734309759996,0.50265862,3988.8,3987.6,2.50775]
[1734309760294,0.50265862,3988.8,3987.3,1.79179691]
[1734309760521,2.50677,3989.2,3987.3,0.7699]
[1734309760720,5.45926128,3989.7,3987.3,0.7699]
[1734309760721,2.50728,3988.4,3987.3,0.7699]
[1734309760953,2.5071,3988.7,3987.3,0.7699]
[1734309761447,0.50170643,3988.4,3987.3,0.7699]
[1734309761946,5.01328,3989.4,3987.3,0.7699]
[1734309762090,0.50726925,3987.8,3987.3,0.7699]
[1734309762440,0.50466324,3988.2,3987.3,0.7699]
[1734309762647,2.95280128,3989.7,3987.3,0.7699]
[1734309762822,0.48184213,3988.5,3987.6,2.50776]
[1734309763405,0.48184213,3988.5,3987.4,1.02189691]
[1734309763592,0.48184213,3988.5,3987.3,3.90890571]
[1734309763937,0.48184213,3988.5,3987.4,2.1171088]
[1734309764110,0.48184213,3988.5,3987.6,2.50775]
[1734309764370,2.50693,3989.0,3987.4,3.52978691]
[1734309764672,0.51205966,3988.4,3987.3,0.7699]
[1734309765076,3.01932966,3988.4,3987.3,0.7699]
[1734309765258,0.51205966,3988.4,3987.3,0.7699]
[1734309765461,3.01933966,3988.4,3987.3,0.7699]
[1734309766178,5.0139,3988.9,3986.8,0.808]
[1734309766377,0.50273672,3987.5,3986.8,0.808]
[1734309766800,2.50755,3988.0,3986.8,0.808]
[1734309767091,0.49531848,3987.5,3986.8,0.808]
[1734309768210,2.50694,3989.0,3986.8,0.808]
[1734309768710,2.50781,3987.6,3986.8,0.808]
[1734309769002,2.50748,3988.1,3986.8,0.808]
[1734309769215,0.48930368,3987.7,3986.8,0.808]
[1734309769491,2.50748,3988.1,3986.8,0.808]
[1734309769899,0.51175892,3987.8,3986.8,0.808]
[1734309771863,2.60735209,3988.8,3986.9,2.50818]
[1734309772144,2.50644,3989.8,3986.8,0.808]
[1734309772145,5.11408209,3989.3,3986.8,0.808]
[1734309772321,5.11408209,3989.3,3987.2,2.50796]
[1734309772322,2.50709,3988.7,3987.2,2.50796]
[1734309772525,0.49521976,3988.2,3987.2,2.50796]
[1734309772895,0.49521976,3988.2,3986.9,2.50821]
[1734309773102,0.49521976,3988.2,3987.5,0.7526]
[1734309773531,0.51346839,3988.4,3987.5,0.7526]
[1734309774042,0.51346839,3988.4,3987.8,2.50763]
[1734309774409,0.51346839,3988.4,3987.5,0.7526]
[1734309775223,2.50645,3989.7,3987.6,2.50775]
[1734309775411,0.50564755,3988.5,3987.5,0.7526]
[1734309775841,0.50564755,3988.5,3987.5,3.26042]
[1734309776028,0.50564755,3988.5,3987.5,0.7526]
[1734309777470,0.50564755,3988.5,3987.6,2.50775]
[1734309777826,0.50564755,3988.5,3987.5,0.7526]
[1734309778330,0.50564755,3988.5,3987.5,3.26042]
[1734309779270,0.50564755,3988.5,3987.5,0.7526]
[1734309779495,2.50671,3989.3,3987.5,0.7526]
[1734309779496,2.50741,3988.2,3987.5,0.7526]
[1734309779810,2.50682,3989.2,3987.5,0.7526]
[1734309780095,2.50617,3990.2,3988.4,0.7926]
[1734309780598,2.50591,3990.6,3988.4,0.7926]
[1734309781099,2.50601,3990.4,3988.4,0.7926]
[1734309781591,2.50572,3990.9,3988.4,0.7926]
[1734309781797,0.49648873,3989.4,3988.4,0.7926]
[1734309782470,0.49648873,3989.4,3988.5,2.50719]
[1734309782667,0.49648873,3989.4,3988.4,3.29985]
[1734309782856,1.66952772,3990.3,3988.4,0.7926]
[1734309783058,2.60735209,3991.1,3989.2,0.8134]
[1734309783059,2.50589,3990.6,3989.2,0.8134]
[1734309783261,2.60735209,3991.1,3989.2,0.8134]
[1734309783583,0.49653886,3989.9,3989.2,0.8134]
[1734309784920,2.5058,3990.8,3989.3,2.50667]
[1734309785212,0.50762743,3990.2,3989.3,2.50667]
[1734309785809,0.50762743,3990.2,3989.2,0.8134]
[1734309786017,0.50762743,3990.2,3989.5,2.50656]
[1734309786314,0.50762743,3990.2,3989.3,2.50668]
[1734309786496,0.50762743,3990.2,3989.4,2.50661]
[1734309788216,2.50547,3991.3,3989.4,2.50661]
[1734309788422,2.50571,3990.9,3989.4,2.50661]
[1734309789030,2.50554,3991.2,3989.3,0.7924]
[1734309789243,2.50546,3991.3,3989.7,2.50639]
[1734309789440,2.50552,3991.2,3989.7,2.50639]
[1734309789741,2.50575,3990.9,3989.4,2.50663]
[1734309790333,2.50559,3991.1,3989.5,2.50652]
[1734309790505,2.50559,3991.1,3989.3,0.7924]
[1734309790705,2.50547,3991.3,3989.8,2.50636]
[1734309790906,2.50552,3991.2,3989.8,2.50636]
[1734309791414,1.81308737,3991.4,3989.8,2.50636]
[1734309791755,2.50558,3991.1,3989.6,2.5065]
[1734309791891,0.50569115,3990.5,3989.3,3.29905]
[1734309792091,0.50569115,3990.5,3989.4,2.50662]
[1734309792342,0.50569115,3990.5,3989.3,0.7924]
[1734309792491,2.50601,3990.4,3988.9,0.8159]
[1734309792697,0.50949861,3989.7,3988.9,0.8159]
[1734309793034,1.9460142,3991.4,3989.6,0.7615]
[1734309793035,2.50559,3991.1,3989.6,0.7615]
[1734309793239,4.31849737,3991.4,3989.8,2.50633]
[1734309793438,4.31849737,3991.4,3989.9,2.50632]
[1734309793439,1.81308737,3991.4,3989.9,2.50632]
[1734309793593,2.50573,3990.9,3989.6,0.7615]
[1734309793790,0.48981002,3990.4,3989.6,0.7615]
[1734309794027,0.48981002,3990.4,3989.8,2.50635]
[1734309794232,0.48981002,3990.4,3989.6,0.7615]
[1734309794233,2.50607,3990.3,3989.6,0.7615]
[1734309794464,2.50607,3990.3,3989.0,1.02189691]
[1734309794465,2.50646,3989.7,3989.0,0.7615]
[1734309794632,0.48981002,3990.4,3988.6,0.50524026]
[1734309794633,0.48981002,3990.4,3988.6,0.7973]
[1734309795171,2.50657,3989.6,3988.6,0.7973]
[1734309795463,2.50595,3990.5,3988.6,0.7973]
[1734309795638,0.49957917,3989.2,3988.0,2.50751]
[1734309795833,0.49957917,3989.2,3988.1,2.50744]
[1734309796060,0.49957917,3989.2,3988.1,0.49446915]
[1734309796365,2.50595,3990.5,3987.9,0.8151]
[1734309796366,0.51019998,3988.6,3987.9,0.8151]
[1734309796566,2.60735209,3989.7,3987.5,0.8151]
[1734309796768,2.60735209,3990.2,3987.5,0.8151]
[1734309796951,2.50622,3990.1,3988.6,0.8151]
[1734309797153,2.60735209,3990.2,3988.6,0.8151]
[1734309797353,2.50588,3990.6,3988.6,3.32219]
[1734309797555,2.5061,3990.3,3988.8,2.507]
[1734309798080,0.50689684,3989.5,3988.9,2.50691]
[1734309798235,0.51135693,3989.7,3989.0,2.50685]
[1734309798570,2.50603,3990.4,3989.0,2.50685]